{"text_format":"1","workbook":"xlsx","n_sheets":21,"sheets":["Introducción","Guía","Inicio","Resultados - Previo","Resultados - Posterior","U1 - Polí y norm nacio","U2 - Segu Explo","U3 - Edu Riesgos","U4 - Desarollo Capa","U5 - Ctrl Frontera","U6 - Precursores","U7 - Cooperacion","U8 - Inteligencia","D1 - Deactivación","D2 - Escenario","D3 - Pruebas","D4 - Gestión Info","D5 - Estudio Téc","D6 - ID Perpetrador","D7 - Proceso Judi","D8 - Contramedidas"],"not_rendered":{"charts":2,"images":1,"macros":1,"external_links":0,"defined_names":0,"comments":0,"pivot_tables":0},"unopened":[],"bounds":{"document_bytes":16777216,"sheet_cells":100000,"rows_first":2000,"rows_last":500,"rows_between":2000,"halvings":0,"cell_chars":16384,"cell_head_chars":4096},"cells_cut":0,"cells_raw":0,"read":"whole","date_system":"1900"}

{"sheet":"Introducción","index":0,"n_rows":1,"n_cols":9,"rows_kept":1,"cut":false,"hidden":false,"merged":[[0,8,0,12],[0,5,0,7]]}
[null,null,null,null,null,"Instrumento de Autoevaluación de la Madurez de las Capacidades contra los AEI",null,null,"Antes de utilizar este documento, asegúrese de que ha activado las macros en Excel."]

{"sheet":"Guía","index":1,"n_rows":1,"n_cols":6,"rows_kept":1,"cut":false,"hidden":false,"merged":[[0,5,0,12]]}
[null,null,null,null,null,"Instrumento de Autoevaluación de la Madurez de las Capacidades contra los AEI"]

{"sheet":"Inicio","index":2,"n_rows":9,"n_cols":2,"rows_kept":9,"cut":false,"hidden":false,"merged":[]}
[null,"Instrumento de Autoevaluación de la Madurez de las Capacidades contra los AEI"]
[]
["Fecha de la evaluación:","2020-07-01"]
[]
["Descripción de la evaluación:","País X"]
[]
["Nombre(s) del(de los) evaluador(es):","Autor"]
[]
["Notas:","Esta es una casilla de texto libre"]

{"sheet":"Resultados - Previo","index":3,"n_rows":24,"n_cols":3,"rows_kept":24,"cut":false,"hidden":false,"merged":[[0,2,0,5],[16,0,17,0]]}
[null,null,"Instrumento de Autoevaluación de la Madurez de las Capacidades contra los AEI"]
["Medidas previas lucha contra la proliferación de los AEI - Resumen de la madurez de las capacidades contra los AEI"]
["Componentes previos de la capacidad anti AEI"]
[]
["Componente de la capacidad contra los AEI","Nivel MMC"]
[]
["U1 - Políticas, legislación y regulaciones nacionales",{"$f":"'U1 - Polí y norm nacio'!M5","v":1}]
["U2 - Seguridad y control de explosivos",{"$f":"'U2 - Segu Explo'!M5","v":1}]
["U3 - Educación sobre los riesgos de los AEI",{"$f":"'U3 - Edu Riesgos'!M5","v":1}]
["U4 - Desarrollo de capacidades de lucha contra los AEI",{"$f":"'U4 - Desarollo Capa'!M5","v":1}]
["U5 - Controles fronterizos",{"$f":"'U5 - Ctrl Frontera'!M5","v":1}]
["U6 - Control de precursores de AEI",{"$f":"'U6 - Precursores'!M5","v":1}]
["U7 - Cooperación e intercambio de información regional e internacional",{"$f":"'U7 - Cooperacion'!M5","v":1}]
["U8 - Operaciones de lucha contra los AEI basadas en inteligencia",{"$f":"'U8 - Inteligencia'!M5","v":1}]
[]
[]
["Nivel medio de madurez de los componentes previos contra los AEI",{"$f":"AVERAGE(B7:B14)","v":1}]
[]
[]
[]
[]
["Fecha:",{"$f":"Inicio!B3","v":"2020-07-01"}]
["Descripción de la evaluación:",{"$f":"Inicio!B5","v":"País X"}]
["Nombre(s) del(de los) evaluador(es):",{"$f":"Inicio!B7","v":"Autor"}]

{"sheet":"Resultados - Posterior","index":4,"n_rows":24,"n_cols":3,"rows_kept":24,"cut":false,"hidden":false,"merged":[[0,2,0,5],[16,0,17,0]]}
[null,null,"Instrumento de Autoevaluación de la Madurez de las Capacidades contra los AEI"]
["Medidas posteriores de lucha contra la proliferación de los AEI - Resumen de la madurez de las capacidades contra los AEI"]
["Componentes posteriores de la capacidad contra los AEI"]
[]
["Componente de la capacidad contra los AEI","Nivel MMC"]
[]
["D1 - Respuesta a los AEI: Desactivación",{"$f":"'D1 - Deactivación'!M5","v":1}]
["D2 - Respuesta a los AEI: análisis del escenario",{"$f":"'D2 - Escenario'!M5","v":1}]
["D3 - Análisis de las pruebas recabadas",{"$f":"'D3 - Pruebas'!M5","v":1}]
["D4 - Gestión de la información",{"$f":"'D4 - Gestión Info'!M5","v":1}]
["D5 - Estudio técnico de los AEI recuperados",{"$f":"'D5 - Estudio Téc'!M5","v":1}]
["D6 - Identificación de los perpetradores",{"$f":"'D6 - ID Perpetrador'!M5","v":1}]
["D7 - Proceso judicial",{"$f":"'D7 - Proceso Judi'!M5","v":1}]
["D8 - Desarrollo de contramedidas relacionadas con los AEI",{"$f":"'D8 - Contramedidas'!M5","v":1}]
[]
[]
["Nivel medio de madurez de los componentes posteriores contra los AEI",{"$f":"AVERAGE(B7:B14)","v":1}]
[]
[]
[]
[]
["Fecha:",{"$f":"Inicio!B3","v":"2020-07-01"}]
["Descripción de la evaluaciónn:",{"$f":"Inicio!B5","v":"País X"}]
["Nombre(s) del(de los) evaluador(es):",{"$f":"Inicio!B7","v":"Autor"}]

{"sheet":"U1 - Polí y norm nacio","index":5,"n_rows":5,"n_cols":13,"rows_kept":5,"cut":false,"hidden":false,"merged":[[0,6,0,13]]}
[null,null,null,null,null,null,"Instrumento de Autoevaluación de la Madurez de las Capacidades contra los AEI"]
["Medidas previas contra los AEI - Políticas, legislación y regulaciones nacionales"]
[]
[]
[null,null,null,null,null,null,null,"Nivel de madurez contra los AEI evaluado:",null,null,null,null,1]

{"sheet":"U2 - Segu Explo","index":6,"n_rows":5,"n_cols":13,"rows_kept":5,"cut":false,"hidden":false,"merged":[[0,6,0,13]]}
[null,null,null,null,null,null,"Instrumento de Autoevaluación de la Madurez de las Capacidades contra los AEI"]
["Medidas previas contra los AEI - Seguridad y control de explosivos"]
[]
[]
[null,null,null,null,null,null,null,"Nivel de madurez contra los AEI evaluado:",null,null,null,null,1]

{"sheet":"U3 - Edu Riesgos","index":7,"n_rows":5,"n_cols":13,"rows_kept":5,"cut":false,"hidden":false,"merged":[[0,6,0,13]]}
[null,null,null,null,null,null,"Instrumento de Autoevaluación de la Madurez de las Capacidades contra los AEI"]
["Medidas previas contra los AEI - Educación sobre los riesgos de los AEI"]
[]
[]
[null,null,null,null,null,null,null,"Nivel de madurez contra los AEI evaluado:",null,null,null,null,1]

{"sheet":"U4 - Desarollo Capa","index":8,"n_rows":5,"n_cols":13,"rows_kept":5,"cut":false,"hidden":false,"merged":[[0,6,0,13]]}
[null,null,null,null,null,null,"Instrumento de Autoevaluación de la Madurez de las Capacidades contra los AEI"]
["Medidas previas contra los AEI - Desarrollo de capacidades de lucha contra los AEI"]
[]
[]
[null,null,null,null,null,null,null,"Nivel de madurez contra los AEI evaluado:",null,null,null,null,1]

{"sheet":"U5 - Ctrl Frontera","index":9,"n_rows":5,"n_cols":13,"rows_kept":5,"cut":false,"hidden":false,"merged":[[0,6,0,13]]}
[null,null,null,null,null,null,"Instrumento de Autoevaluación de la Madurez de las Capacidades contra los AEI"]
["Medidas previas contra los AEI - Controles fronterizos"]
[]
[]
[null,null,null,null,null,null,null,"Nivel de madurez contra los AEI evaluado:",null,null,null,null,1]

{"sheet":"U6 - Precursores","index":10,"n_rows":5,"n_cols":13,"rows_kept":5,"cut":false,"hidden":false,"merged":[[0,6,0,13]]}
[null,null,null,null,null,null,"Instrumento de Autoevaluación de la Madurez de las Capacidades contra los AEI"]
["Medidas previas contra los AEI - Control de precursores de AEI"]
[]
[]
[null,null,null,null,null,null,null,"Nivel de madurez contra los AEI evaluado:",null,null,null,null,1]

{"sheet":"U7 - Cooperacion","index":11,"n_rows":5,"n_cols":13,"rows_kept":5,"cut":false,"hidden":false,"merged":[[0,6,0,13]]}
[null,null,null,null,null,null,"Instrumento de Autoevaluación de la Madurez de las Capacidades contra los AEI"]
["Medidas previas contra los AEI - Cooperación e intercambio de información a escala regional e internacional"]
[]
[]
[null,null,null,null,null,null,null,"Nivel de madurez contra los AEI evaluado:",null,null,null,null,1]

{"sheet":"U8 - Inteligencia","index":12,"n_rows":5,"n_cols":13,"rows_kept":5,"cut":false,"hidden":false,"merged":[[0,6,0,13]]}
[null,null,null,null,null,null,"Instrumento de Autoevaluación de la Madurez de las Capacidades contra los AEI"]
["Medidas previas contra los AEI - Operaciones de lucha contra los AEI basadas en inteligencia"]
[]
[]
[null,null,null,null,null,null,null,"Nivel de madurez contra los AEI evaluado:",null,null,null,null,1]

{"sheet":"D1 - Deactivación","index":13,"n_rows":5,"n_cols":13,"rows_kept":5,"cut":false,"hidden":false,"merged":[[0,6,0,13]]}
[null,null,null,null,null,null,"Instrumento de Autoevaluación de la Madurez de las Capacidades contra los AEI"]
["Medidas posteriores contra los AEI - Respuesta a los AEI: Desactivación"]
[]
[]
[null,null,null,null,null,null,null,"Nivel de madurez contra los AEI evaluado:",null,null,null,null,1]

{"sheet":"D2 - Escenario","index":14,"n_rows":5,"n_cols":13,"rows_kept":5,"cut":false,"hidden":false,"merged":[[0,6,0,13]]}
[null,null,null,null,null,null,"Instrumento de Autoevaluación de la Madurez de las Capacidades contra los AEI"]
["Medidas posteriores contra los AEI - Respuesta a los AEI: análisis del escenario"]
[]
[]
[null,null,null,null,null,null,null,"Nivel de madurez contra los AEI evaluado:",null,null,null,null,1]

{"sheet":"D3 - Pruebas","index":15,"n_rows":5,"n_cols":13,"rows_kept":5,"cut":false,"hidden":false,"merged":[[0,6,0,13]]}
[null,null,null,null,null,null,"Instrumento de Autoevaluación de la Madurez de las Capacidades contra los AEI"]
["Medidas posteriores contra los AEI - Análisis de las pruebas recabadas"]
[]
[]
[null,null,null,null,null,null,null,"Nivel de madurez contra los AEI evaluado:",null,null,null,null,1]

{"sheet":"D4 - Gestión Info","index":16,"n_rows":5,"n_cols":13,"rows_kept":5,"cut":false,"hidden":false,"merged":[[0,6,0,13]]}
[null,null,null,null,null,null,"Instrumento de Autoevaluación de la Madurez de las Capacidades contra los AEI"]
["Medidas posteriores contra los AEI - Gestión de la información"]
[]
[]
[null,null,null,null,null,null,null,"Nivel de madurez contra los AEI evaluado:",null,null,null,null,1]

{"sheet":"D5 - Estudio Téc","index":17,"n_rows":5,"n_cols":13,"rows_kept":5,"cut":false,"hidden":false,"merged":[[0,6,0,13]]}
[null,null,null,null,null,null,"Instrumento de Autoevaluación de la Madurez de las Capacidades contra los AEI"]
["Medidas posteriores contra los AEI - Estudio técnico de los AEI recuperados"]
[]
[]
[null,null,null,null,null,null,null,"Nivel de madurez contra los AEI evaluado:",null,null,null,null,1]

{"sheet":"D6 - ID Perpetrador","index":18,"n_rows":5,"n_cols":13,"rows_kept":5,"cut":false,"hidden":false,"merged":[[0,6,0,13]]}
[null,null,null,null,null,null,"Instrumento de Autoevaluación de la Madurez de las Capacidades contra los AEI"]
["Medidas posteriores contra los AEI - Identificación de los perpetradores"]
[]
[]
[null,null,null,null,null,null,null,"Nivel de madurez contra los AEI evaluado:",null,null,null,null,1]

{"sheet":"D7 - Proceso Judi","index":19,"n_rows":5,"n_cols":13,"rows_kept":5,"cut":false,"hidden":false,"merged":[[0,6,0,13]]}
[null,null,null,null,null,null,"Instrumento de Autoevaluación de la Madurez de las Capacidades contra los AEI"]
["Medidas posteriores contra los AEI - Proceso judicial"]
[]
[]
[null,null,null,null,null,null,null,"Nivel de madurez contra los AEI evaluado:",null,null,null,null,1]

{"sheet":"D8 - Contramedidas","index":20,"n_rows":5,"n_cols":13,"rows_kept":5,"cut":false,"hidden":false,"merged":[[0,6,0,13]]}
[null,null,null,null,null,null,"Instrumento de Autoevaluación de la Madurez de las Capacidades contra los AEI"]
["Medidas posteriores contra los AEI - Desarrollo de contramedidas relacionadas con los AEI"]
[]
[]
[null,null,null,null,null,null,null,"Nivel de madurez contra los AEI evaluado:",null,null,null,null,1]